Cogmind - Beta 14 *** ADVENTURER MODE // 2024.08.15 @ 14:23:57 Player: AnotherZach Result: Destroyed by L-41 Fighter with Axe Performance ------------- Evolutions (3) 1500 Regions Visited (6) 1200 Robots Destroyed (32) 160 Value Destroyed (555) 555 Prototype IDs (1) 20 Alien Tech Used (0) 0 Bonus (700) 700 TOTAL SCORE: 4135 Bonus ------- Entered Garrisons 200 Entered DSFs 500 Cogmind --------- Core Integrity 0/700 Matter 49/300 Energy 100/100 System Corruption 1% Temperature Cool (6) Movement Core (50) Location -7/Garrison Parts ------- > --- POWER (1) -------- (None) > --- PROPULSION (6) --- (None) > --- UTILITY (4) ------ Structural Scanner Terrain Scan Processor > --- WEAPON (2) ------- (None) > --- INVENTORY (5) ---- Micro Nuclear Core Gravmag System Large Matter Pod (0) Authchip [R/NC] Peak State ------------ > --- POWER ------------ Micro Nuclear Core > --- PROPULSION ------- Gravmag System Gravmag System Gravmag System Gravmag System Improved Gravmag System Improved Gravmag System > --- UTILITY ---------- High-capacity Storage Unit Advanced Terrain Scanner Terrain Scan Processor Improved Field Recycling Unit > --- WEAPON ----------- Rocket Launcher > --- INVENTORY -------- Micro Nuclear Core Micro Nuclear Core Micro Nuclear Core Gravmag System Gravmag System Gravmag System Gravmag System Gravmag System Improved Gravmag System Improved Gravmag System Small Storage Unit Large Matter Pod Structural Scanner Seismic Detector Seismic Detector Authchip [R/NC] Authchip [Storage] [Rating: 49] Favorites ----------- Power Light Ion Engine Engine Light Ion Engine Power Core Micro Nuclear Core Propulsion Flight Unit Treads Medium Treads Wheel Wheel Hover Unit Gravmag System Flight Unit Flight Unit Utility Terrain Scan Processor Device Improved Terrain Scanner Storage Small Storage Unit Processor Terrain Scan Processor Protection Medium Armor Plating Weapon Light Assault Rifle Energy Gun Heavy EM Shotgun Ballistic Gun Light Assault Rifle Launcher Rocket Launcher Special Weapon Mining Laser Build | -11 -10 -10 -8 -7 -7 -7 ------- Run | Yrd Mat Sub Mat Fac DSF Gar Slots Evolved 6 | . . . 4 2 . . Power . | . . . . . . . Propulsion 4 | . . . 3 1 . . Utility 2 | . . . 1 1 . . Weapon . | . . . . . . . Parts Attached 66 | 6 9 2 13 . 22 14 Power 8 | 1 1 1 2 . 2 1 Engine 7 | 1 1 1 2 . 2 . Core 1 | . . . . . . 1 Reactor . | . . . . . . . Propulsion 27 | 2 2 . 4 . 12 7 Treads 1 | . . . . . . 1 Leg . | . . . . . . . Wheel 2 | 2 . . . . . . Hover 18 | . . . . . 12 6 Flight 6 | . 2 . 4 . . . Utility 18 | 1 4 1 2 . 6 4 Device 11 | . 2 1 1 . 4 3 Storage 5 | 1 1 . 1 . 1 1 Processor 1 | . 1 . . . . . Hackware . | . . . . . . . Protection 1 | . . . . . 1 . Artifact . | . . . . . . . Weapon 13 | 2 2 . 5 . 2 2 Energy Gun 3 | 1 . . 1 . 1 . Energy Cannon . | . . . . . . . Ballistic Gun 4 | 1 1 . 2 . . . Ballistic Cannon . | . . . . . . . Launcher 5 | . . . 2 . 1 2 Special Weapon 1 | . 1 . . . . . Impact Weapon . | . . . . . . . Slashing Weapon . | . . . . . . . Piercing Weapon . | . . . . . . . Special Melee Weapon . | . . . . . . . Unidentified Prototypes 1 | . . . 1 . . . Parts Lost 16 | . . 2 2 . 1 11 Power 3 | . . 1 1 . . 1 Propulsion 10 | . . . 1 . 1 8 Utility 1 | . . . . . . 1 Weapon 2 | . . 1 . . . 1 Highest Loss Streak 7 | . . 1 1 . 2 7 To Critical Strikes . | . . . . . . . Average Slot Usage (%) 81 | . 92 93 79 . 83 64 Engine 5 | . 12 9 2 . 6 . Wheel 1 | . 7 . . . . . Hover 11 | . . . . . 40 35 Flight 20 | . 19 28 34 . 3 . Device 8 | . 8 13 8 . 7 4 Storage 6 | . 5 . 9 . 7 6 Processor 9 | . 9 14 9 . 7 7 Energy Gun 4 | . 5 . 8 . 1 . Ballistic Gun 8 | . 18 14 6 . . . Special Weapon 2 | . 3 12 . . . . Peak Build Rating 49 | 6 10 10 18 15 45 49 Average Rating 18 | 4 8 9 15 15 38 35 On Entrance 13 | . 6 8 8 15 15 45 Naked Turns . | . . . . . . . Heaviest Build 66 | 11 11 7 16 16 66 62 Greatest Support 58 | 20 20 8 16 12 56 58 Greatest Overweight (x) 3 | . 3 . . 1 1 1 Average Overweight (x) . | . . . . 1 . . Largest Inventory Capacity 20 | 8 8 8 8 8 20 20 Average Capacity 9 | 7 6 5 7 8 15 14 Most Carried 20 | 6 8 8 8 7 19 20 Average Carried 7 | 2 5 5 5 7 9 13 Final Capacity 20 | 8 8 5 8 8 20 5 Final Carried 19 | 6 8 5 7 7 19 4 Class Distribution -------------------- 55% | Scavenger-Mutant 39% | Mutant 5% | Scavenger-Sprinter Dominant Class ---------------- Scavenger-Mutant | -10/Materials Scavenger-Mutant | -10/Subcaves Scavenger-Mutant | -8/Materials Scavenger-Mutant | -7/Factory Mutant | -7/DSF Mutant | -7/Garrison Resources | -11 -10 -10 -8 -7 -7 -7 ----------- Run | Yrd Mat Sub Mat Fac DSF Gar Matter Collected 572 | 269 126 20 149 . 8 . Remotely . | . . . . . . . Salvage Created 803 | 165 180 . 352 . 23 83 Parts 63 | 9 27 1 17 . 7 2 Haulers Intercepted . | . . . . . . . Recyclers Shooed 2 | . . . 2 . . . Parts Field Recycled 11 | . . . . . 4 7 Retrieved Matter 202 | . . . . . 36 166 Parts Self-Destructed 3 | . . 3 . . . . Prevented . | . . . . . . . Kills | -11 -10 -10 -8 -7 -7 -7 ------- Run | Yrd Mat Sub Mat Fac DSF Gar Combat Hostiles Destroyed 20 | . 6 . 6 . 3 5 Guns 7 | . 5 . 2 . . . AOE 13 | . 1 . 4 . 3 5 Classes Destroyed 9 | 2 2 1 3 . 1 . Builder 4 | . 4 . . . . . Tunneler 4 | 3 1 . . . . . Recycler 4 | 1 . . 3 . . . Swarmer 11 | . 6 . 3 . . 2 Cutter 3 | . . . . . 3 . Grunt 4 | . . . 1 . . 3 Sentry 1 | . . . 1 . . . Hunter 1 | . . . 1 . . . Artisan 1 | . . 1 . . . . Best Kill Streak 6 | 2 5 . 6 . 3 5 Combat Bots Only 5 | . 3 . 4 . 3 5 Max Kills in Single Turn 2 | 1 1 1 2 . 2 2 Gunslinging . | . . . . . . . Exploded 2 | . 1 . 2 . 2 2 Melee . | . . . . . . . Uniques/NPCs Destroyed . | . . . . . . . Combat | -11 -10 -10 -8 -7 -7 -7 -------- Run | Yrd Mat Sub Mat Fac DSF Gar Hostile Shots Fired 317 | . 25 15 35 . 62 180 Missed 120 | . 8 7 20 . 27 58 Damage Taken 2339 | 26 118 164 163 . 452 1416 Core 846 | . 43 62 28 . 53 660 Absorbed by Shields 129 | . . . . . 19 110 Ignored by Resistances 705 | 7 41 35 42 . 142 438 Regen/Repaired (Parts) 34 | . . . 34 . . . Core Remaining (%) 84 | 100 . 58 94 . . . Volleys Fired 84 | 9 32 8 23 . 2 10 Largest 2 | 2 2 2 2 . 1 1 Hottest 120 | 60 120 120 83 . 33 33 Shots Fired 125 | 18 55 13 27 . 2 10 Gun 90 | 18 46 5 21 . . . Cannon . | . . . . . . . Launcher 18 | . . . 6 . 2 10 Special 17 | . 9 8 . . . . Kinetic 59 | 9 36 5 9 . . . Thermal 17 | . 9 8 . . . . Explosive 18 | . . . 6 . 2 10 Electromagnetic 31 | 9 10 . 12 . . . Robot Hit Streak 23 | 10 13 12 23 . 6 7 Robot Miss Streak 1 | 1 1 . 1 . 1 . Penetration Max . | . . . . . . . Secondary Targets . | . . . . . . . Shots Hit Robots 81 | 14 36 4 19 . 1 7 Core Hits 58 | 5 19 1 17 . 5 11 Critical Kills . | . . . . . . . Critical Parts Destroyed . | . . . . . . . Critical Strikes . | . . . . . . . Melee Attacks . | . . . . . . . Impact . | . . . . . . . Slashing . | . . . . . . . Piercing . | . . . . . . . Sneak Attacks . | . . . . . . . Combat Hostiles . | . . . . . . . Follow-up Attacks . | . . . . . . . Damage Inflicted 2191 | 210 418 48 687 . 181 647 Guns 767 | 152 320 . 295 . . . Cannons . | . . . . . . . Explosions 1299 | 58 74 . 351 . 176 640 Melee . | . . . . . . . Ramming 53 | . . . 41 . 5 7 Kinetic 346 | 57 224 . 65 . . . Thermal 267 | 58 98 48 63 . . . Explosive 1104 | . . . 288 . 176 640 Electromagnetic 421 | 95 96 . 230 . . . Impact . | . . . . . . . Slashing . | . . . . . . . Piercing . | . . . . . . . Highest Corruption 1 | . . . . . . 1 Average Corruption 1 | . . . . . . 1 Corruption Purged . | . . . . . . . Corruption Blocked . | . . . . . . . Overload Shots . | . . . . . . . Overflow Damage 27 | . 9 . 12 . . 6 Projectiles . | . . . . . . . Explosions 27 | . 9 . 12 . . 6 Melee . | . . . . . . . Knockbacks . | . . . . . . . Impact . | . . . . . . . Kinetic . | . . . . . . . Secondary . | . . . . . . . Self-Inflicted Damage 136 | 26 25 . 20 . 62 3 Shots 4 | 1 1 . . . 2 . Rammed 5 | . . . 1 . 1 3 Targets Rammed 5 | . . . 1 . 1 3 Kicked . | . . . . . . . Crushed . | . . . . . . . Highest Temperature 166 | 52 166 . 9 . . 75 Average Temperature 43 | 17 55 . 5 . . 34 Received Heat Transfer 783 | . . 30 36 . 54 663 Siege Activations . | . . . . . . . Robots Corrupted . | . . . . . . . Combat Hostiles . | . . . . . . . Parts Fried . | . . . . . . . Impact Corruptions . | . . . . . . . Robots Melted . | . . . . . . . Combat Hostiles . | . . . . . . . Parts Melted 1 | 1 . . . . . . Heat Transferred 400 | 100 150 100 50 . . . Parts Sabotaged . | . . . . . . . Parts Stolen . | . . . . . . . Parts Stripped . | . . . . . . . Power Chain Reactions 5 | 1 2 . 2 . . . Alert | -11 -10 -10 -8 -7 -7 -7 ------- Run | Yrd Mat Sub Mat Fac DSF Gar Peak Influence 477 | 20 284 . 302 66 201 477 Initial 133 | . 11 . 48 66 39 133 Average 170 | 9 160 . 159 66 118 287 Maximum Alert Level 2 | . 1 . 1 . 1 2 Low Security (%) 67 | 100 58 . 74 100 92 37 Level 1 25 | . 41 . 25 . 7 30 Level 2 6 | . . . . . . 32 Level 3 . | . . . . . . . Level 4 . | . . . . . . . Level 5 . | . . . . . . . High Security . | . . . . . . . Max Security . | . . . . . . . Squads Dispatched 3 | . . . 2 . 1 . Investigation 1 | . . . 1 . . . Extermination . | . . . . . . . Reinforcement 2 | . . . 1 . 1 . Assault . | . . . . . . . Garrison . | . . . . . . . Intercept . | . . . . . . . Searches Triggered . | . . . . . . . Construction Impeded . | . . . . . . . Haulers Reinforced . | . . . . . . . Active Scanning Responses . | . . . . . . . Cargo Convoy Interrupts . | . . . . . . . Stealth | -11 -10 -10 -8 -7 -7 -7 --------- Run | Yrd Mat Sub Mat Fac DSF Gar Distress Signals 4 | . 3 . 1 . . . Communications Jammed . | . . . . . . . Distress Signals . | . . . . . . . Times Spotted 70 | . 11 5 15 . 12 27 Peak Tracking Total 14 | . 6 5 6 . 6 14 Tactical Retreats 13 | . 2 . 1 . 5 5 Traps | -11 -10 -10 -8 -7 -7 -7 ------- Run | Yrd Mat Sub Mat Fac DSF Gar Traps Triggered 7 | . . 1 . . 3 3 Indirectly . | . . . . . . . Trap Hack Attempts . | . . . . . . . Triggered . | . . . . . . . Disarmed . | . . . . . . . Reprogrammed . | . . . . . . . Reused . | . . . . . . . Traps Extracted . | . . . . . . . Installed . | . . . . . . . Triggered . | . . . . . . . Machines | -11 -10 -10 -8 -7 -7 -7 ---------- Run | Yrd Mat Sub Mat Fac DSF Gar Machines Disabled . | . . . . . . . Max in Single Turn . | . . . . . . . Machines Repaired . | . . . . . . . Machines Dismantled . | . . . . . . . Machines Sabotaged . | . . . . . . . Overloaded Fab Kills . | . . . . . . . Hacking | -11 -10 -10 -8 -7 -7 -7 --------- Run | Yrd Mat Sub Mat Fac DSF Gar Machines Accessed 8 | . 2 . 4 1 . 1 Terminals 7 | . 2 . 3 1 . 1 Fabricators . | . . . . . . . Repair Stations 1 | . . . 1 . . . Recycling Units . | . . . . . . . Scanalyzers . | . . . . . . . Garrison Access . | . . . . . . . Total Hacks 24 | . 4 . 15 2 . 3 Successful 13 | . 3 . 9 1 . . Failed 11 | . 1 . 6 1 . 3 Catastrophic 4 | . . . 3 . . 1 Database Lockouts . | . . . . . . . Manual 12 | . 5 . 7 . . . Terminals 17 | . 4 . 8 2 . 3 Fabricators . | . . . . . . . Repair Stations 7 | . . . 7 . . . Recycling Units . | . . . . . . . Scanalyzers . | . . . . . . . Garrison Access . | . . . . . . . Terminal Hacks 3 | . 1 . 1 1 . . Part Schematic 1 | . . . 1 . . . Robot Schematic 1 | . 1 . . . . . Open DSF 1 | . . . . 1 . . Fabricator Hacks . | . . . . . . . Repair Station Hacks 5 | . . . 5 . . . Scan Component 2 | . . . 2 . . . Repair 2 | . . . 2 . . . Refit 1 | . . . 1 . . . Recycling Unit Hacks . | . . . . . . . Scanalyzer . | . . . . . . . Garrison Access Hacks . | . . . . . . . Unauthorized Hacks 5 | . 2 . 3 . . . Terminals 5 | . 2 . 3 . . . Assimilate 2 | . . . 2 . . . Botnet 3 | . 2 . 1 . . . Fabricators . | . . . . . . . Repair Stations . | . . . . . . . Recycling Units . | . . . . . . . Scanalyzers . | . . . . . . . Garrison Access . | . . . . . . . Data Cores Recovered . | . . . . . . . Used . | . . . . . . . Hacking Detections 8 | . 2 . 4 1 . 1 Full Trace Events 5 | . 1 . 3 . . 1 Feedback Events 1 | . . . . . . 1 Corruption 1 | . . . . . . 1 Feedback Blocked . | . . . . . . . Robot Schematics Acquired 1 | . 1 . . . . . Robots Built . | . . . . . . . Authchips . | . . . . . . . Time . | . . . . . . . Total Robot Build Rating . | . . . . . . . Part Schematics Acquired 1 | . . . 1 . . . Parts Built . | . . . . . . . Authchips . | . . . . . . . Time . | . . . . . . . Total Part Build Rating . | . . . . . . . Parts Repaired 2 | . . . 2 . . . Time 52 | . . . 52 . . . Parts Recycled . | . . . . . . . Recycled Matter . | . . . . . . . Retrieved Matter . | . . . . . . . Retrieved Components . | . . . . . . . Parts Scanalyzed . | . . . . . . . Part Schematics Acquired . | . . . . . . . Parts Damaged . | . . . . . . . Bothacking | -11 -10 -10 -8 -7 -7 -7 ------------ Run | Yrd Mat Sub Mat Fac DSF Gar Used RIF Installer . | . . . . . . . Robots Hacked . | . . . . . . . Non-combat . | . . . . . . . Combat . | . . . . . . . Robot Hacks Applied . | . . . . . . . Relay Couplers Released . | . . . . . . . Fabnet Peak Effective % . | . . . . . . . Robots Rewired . | . . . . . . . Allies Hacked . | . . . . . . . Hacks Repelled . | . . . . . . . Allies | -11 -10 -10 -8 -7 -7 -7 -------- Run | Yrd Mat Sub Mat Fac DSF Gar Total Allies 1 | . . . 1 . . . Largest Group 1 | . . . 1 . . . Highest-Rated Group 26 | . . . 26 . . . Highest-Rated Ally 26 | . . . 26 . . . Total Orders . | . . . . . . . Ally Attacks . | . . . . . . . Total Damage . | . . . . . . . Kills . | . . . . . . . Allies Corrupted . | . . . . . . . Allies Melted . | . . . . . . . Intel | -11 -10 -10 -8 -7 -7 -7 ------- Run | Yrd Mat Sub Mat Fac DSF Gar Robot Analysis Total . | . . . . . . . Derelict Logs Recovered . | . . . . . . . Drone Launches . | . . . . . . . Drone Recoveries . | . . . . . . . Exploration | -11 -10 -10 -8 -7 -7 -7 ------------- Run | Yrd Mat Sub Mat Fac DSF Gar Turns Passed 1560 | 72 287 224 512 3 200 262 Spaces Moved 1495 | 39 273 290 391 3 236 263 Core 25 | 8 4 . . . . 13 Treads . | . . . . . . . Legs . | . . . . . . . Wheels 66 | 31 35 . . . . . Hover 464 | . . . . . 214 250 Flight 940 | . 234 290 391 3 22 . Fastest Speed 31 | 50 37 37 31 114 34 40 Average Speed 42 | 73 44 37 33 114 40 57 Slowest Speed 200 | 80 200 40 37 114 96 96 Overloaded Moves . | . . . . . . . Propulsion Burnouts . | . . . . . . . Robots Hopped 5 | . 3 1 1 . . . Cave-ins Triggered . | . . . . . . . Exploration Rate (%) 35 | 4 20 24 33 . 92 37 Regions Visited 6 Branch Regions 1 Pre-discovered Areas . | . . . . . . . Known Exits Taken 1 | . . . . 1 . . Unknown Exits Taken 4 | 1 1 1 1 . . . Scrap Searched . | . . . . . . . Spaces Dug 25 | . 4 . 12 . . 9 Terrain Destroyed 123 | 2 19 . 41 . 17 44 Melee . | . . . . . . . Projectile 5 | . 5 . . . . . AOE 118 | 2 14 . 41 . 17 44 Terrain Rammed . | . . . . . . . Walls Destroyed . | . . . . . . . Machines Disabled . | . . . . . . . Actions | -11 -10 -10 -8 -7 -7 -7 --------- Run | Yrd Mat Sub Mat Fac DSF Gar Total 2274 | 65 373 373 751 2 343 367 Wait 472 | . 33 72 303 . 20 44 Move 1479 | 38 266 287 389 2 235 262 Hop 5 | . 3 1 1 . . . Pick Up 81 | 12 16 2 14 . 32 5 Fast Attach . | . . . . . . . Attach 48 | 6 7 1 11 . 13 10 Detach 8 | . . . 1 . 3 4 Swap 18 | . 2 1 2 . 9 4 Drop 44 | . 14 1 7 . 14 8 Fire 84 | 9 32 8 23 . 2 10 Melee . | . . . . . . . Ram 4 | . . . . . 1 3 Kick . | . . . . . . . Crush . | . . . . . . . Escape Stasis 31 | . . . . . 14 17 Rewire . | . . . . . . . Trap . | . . . . . . . Miscellaneous . | . . . . . . . Route ------- -11/Scrapyard -10/Materials (discovered 2 exits: [Min] / [*Sub]) -10/Subcaves -8/Materials -7/Factory -7/DSF -7/Garrison (discovered 1 exit: [*Fac]) History --------- Turn | Location | Event 16 | -11/Scrapyard | Discovered new exit (range 16) 73 | -11/Scrapyard | Entered Materials 226 | -10/Materials | Discovered new exit (range 15) 321 | -10/Materials | Discovered new exit (range 8) 360 | -10/Materials | Entered Subcaves 453 | -10/Subcaves | Build established: Scavenger-Mutant 508 | -10/Subcaves | Ambushed by angry Subdweller bent on revenge 570 | -10/Subcaves | Discovered new exit (range 15) 584 | -10/Subcaves | Ambushed by Subdwellers from Twisted Machinery 584 | -10/Subcaves | Entered Materials 584 | -8/Materials | Evolved 4 slots: Propulsion x3, Utility x1 952 | -8/Materials | Repaired Flight Unit 980 | -8/Materials | Repaired Flight Unit? 1091 | -8/Materials | Discovered new exit (range 11) 1096 | -8/Materials | Entered Factory 1096 | -7/Factory | Evolved 2 slots: Propulsion x1, Utility x1 1099 | -7/Factory | Identified exit to DSF 1099 | -7/Factory | Entered DSF 1119 | -7/DSF | Additional patrols routed to DSF 1182 | -7/DSF | Discovered new exit (range 14) 1299 | -7/DSF | Entered Garrison 1380 | -7/Garrison | Build established: Mutant 1453 | -7/Garrison | Triggered checkpoint 1457 | -7/Garrison | Triggered checkpoint 1487 | -7/Garrison | Discovered new exit (range 10) 1497 | -7/Garrison | Lost 4 parts (3n1w) 1508 | -7/Garrison | Attempted to access garrison exit controls, blocked by remote lockdown 1519 | -7/Garrison | Triggered checkpoint 1533 | -7/Garrison | Triggered checkpoint 1547 | -7/Garrison | Core integrity fell below 50% 1556 | -7/Garrison | Core integrity fell below 20% 1561 | -7/Garrison | Destroyed by L-41 Fighter with Axe Last Messages --------------- 01552_ A bubble of rippling energy engulfs the area. 01552_ Field strength at 94. 01552_ L-41 Fighter suffers critical hit (Burn). 01552_ Penetrated by Slug. 01553_ Field strength at 73. 01554_ Field strength at 64. 01555_ Field strength at 54. 01555_ H-55 Commando destroyed. 01556_ Field strength at 37. 01557_ Field strength at 24. 01558_ Field strength at 1. 01558_ Stasis field depleted. 01559_ Triggered Stasis Trap. 01559_ A bubble of rippling energy engulfs the area. 01559_ Field strength at 94. 01559_ Field strength at 88. 01560_ Field strength at 79. 01561_ Field strength at 64. Map ----- +----------------------------------------------------+ | | | | | | | | | | | | | | | | | | | | | | | | | | | ??????????????????????????????????????? | | ??????????????????????????????????????? | | ??????????????????????????????????????? | | ??????????????????????????????????????? | | ??????????????????????????????????????? | | ??????????????????????????????????????? | | ??????????????????????????????????????? | | ??????????????????????????????????????? | | ??????????????????????????????????????? | | ??????????????????????????????????????? | | ?????????????##################???????? | | ?????????????+ lggg #???????? | | ?????????????+ @ggg[#???????? | | ?????????????# ### ######g #???????? | | ?????????????# #?# #????# ###?????? | | ?????????????# #?#####??### #"#?????? | | ?????????????# #????????# "#?????? | | ?????????????# #????????# "#?????? | | ?????????????# #????????# "#?????? | | ?????????????# #????????### #"#?????? | | ???????????### #?????###### ###?????? | | ???????????# #?????#"T"## #???????? | | ???????????# < #?????#" = #???????? | | ???????????# #?????#########???????? | | ???????????### #?????????????????????? | | ?????????????# #?????????????????????? | | ?????????????# #?????????????????????? | | ?????????????# #?????????????????????? | | ?????????????# #?????????????????????? | | ?????????????# #?????????????????????? | | ?????????????# #?????????????????????? | | ?????????????# #?????????????????????? | | ############## #?????????????????????? | | #?????????????????????? | | #?????????????????????? | | #################?????????????????????? | | ??????????????????????????????????????? | +----------------------------------------------------+ Best States ------------- Heat Dissipation 34 Energy Generation 15 Energy Capacity 275 Matter Stores 300 Matter Capacity 450 Sight Range 16 Terrain Scan Range 20 Terrain Scan Density 85 Armor Coverage 225 Resistance: KI 20 Resistance: TH 20 Resistance: EX 20 Resistance: EM 20 Resistance: I 20 Resistance: S 20 Resistance: P 20 Evasion (%) 63 Offensive Hacking 10 Authchip Count 2 Item Schematics ----------------- VTOL Module | -8/Materials | Hacked Robot Schematics ------------------ O-16 Technician | -10/Materials | Hacked Fabricated ------------ Nothing Alien Tech Used ----------------- None Achievements -------------- None Challenges ------------ None Game ------ Seed ExpertThrusterRigger Manual? 0 Play Time 00:29:47 Cumulative 597.2 hours Start 2024.08.15 @ 13:55:36 End 2024.08.15 @ 14:23:57 Sessions 1 Manual Loads 0 Difficulty Adventurer Special Mode None Game No. 121 Rogue 0 Adventurer 121 Explorer 0 Win Type - Total 7 Types 4/0/1/2/0/0/0/0/0 Lore% 72 Gallery% 81 Achievement% 71 Wizard Run 0 Options --------- Layout 2 ASCII 0 Keyboard 0 Movement Mouse Keybinds 0 Fullscreen 1 Font 24/Smallcaps Map View 50x49 Zoom Use 18% Tactical HUD 1 Map Filters NONE Filters NONE Steam 1 RUN: 7047be53-8429-444e-b5c0-3bb81966bb78